[Event "Titled Tuesday Blitz April 26 Late 2022"]
[White "Butti, Enrique"]
[Black "volunteers1998"]
[WhiteFideId "3700470"]
[WhiteElo "2080"]
[BlackElo "2275"]
[Result "0-1"]
[Round "11"]
[TimeControl "180+1"]
[Date "2022.04.26"]
[WhiteClock "0:01:27"]
[BlackClock "0:01:26"]

1. d4 {[%clk 0:03:00]}  f5 {[%clk 0:02:59]} 2. Nf3 {[%clk 0:02:56]}  Nf6 {[%clk 0:02:59]} 3. g3 {[%clk 0:02:55]}  g6 {[%clk 0:02:59]} 4. Bg2 {[%clk 0:02:55]}  Bg7 {[%clk 0:02:58]} 5. O-O {[%clk 0:02:55]}  O-O {[%clk 0:02:57]} 6. c4 {[%clk 0:02:54]}  d6 {[%clk 0:02:55]} 7. Nc3 {[%clk 0:02:52]}  Nc6 {[%clk 0:02:55]} 8. d5 {[%clk 0:02:50]}  Ne5 {[%clk 0:02:55]} 9. Nd2 {[%clk 0:02:50]}  e6 {[%clk 0:02:48]} 10. e3 {[%clk 0:02:39]}  exd5 {[%clk 0:02:43]} 11. cxd5 {[%clk 0:02:38]}  Bd7 {[%clk 0:02:39]} 12. Qe2 {[%clk 0:02:35]}  a6 {[%clk 0:02:34]} 13. f4 {[%clk 0:02:26]}  Neg4 {[%clk 0:02:30]} 14. h3 {[%clk 0:02:25]}  Nh6 {[%clk 0:02:27]} 15. e4 {[%clk 0:02:24]}  fxe4 {[%clk 0:02:25]} 16. Ndxe4 {[%clk 0:02:23]}  Nxe4 {[%clk 0:02:21]} 17. Nxe4 {[%clk 0:02:22]}  Bb5 {[%clk 0:02:17]} 18. Qc2 {[%clk 0:02:15]}  Bxf1 {[%clk 0:02:15]} 19. Bxf1 {[%clk 0:02:14]}  Nf5 {[%clk 0:02:12]} 20. g4 {[%clk 0:01:59]}  Bd4+ {[%clk 0:02:08]} 21. Kh1 {[%clk 0:01:57]}  Ne3 {[%clk 0:02:07]} 22. Qd3 {[%clk 0:01:53]}  Nxf1 {[%clk 0:02:04]} 23. Qxd4 {[%clk 0:01:46]}  Qh4 {[%clk 0:01:52]} 24. Kg2 {[%clk 0:01:45]}  h5 {[%clk 0:01:42]} 25. g5 {[%clk 0:01:39]}  Qe1 {[%clk 0:01:35]} 26. Bd2 {[%clk 0:01:28]}  Qe2+ {[%clk 0:01:32]} 27. Nf2 {[%clk 0:01:27]}  Qxd2 {[%clk 0:01:26]} 0-1


[Site "https://www.chess.com"]

[Event "Titled Tuesday Blitz April 26 Late 2022"]
[White "Chuemsakul, Sarocha"]
[Black "Stevens, Christian"]
[WhiteFideId "6203710"]
[BlackFideId "2604450"]
[WhiteElo "1703"]
[BlackElo "2556"]
[Result "0-1"]
[Round "11"]
[TimeControl "180+1"]
[Date "2022.04.26"]
[WhiteClock "0:00:02"]
[BlackClock "0:00:33"]

1. d4 {[%clk 0:03:00]}  Nf6 {[%clk 0:02:57]} 2. c4 {[%clk 0:03:01]}  e6 {[%clk 0:02:57]} 3. Nf3 {[%clk 0:03:01]}  d5 {[%clk 0:02:57]} 4. Nc3 {[%clk 0:02:59]}  dxc4 {[%clk 0:02:57]} 5. e3 {[%clk 0:02:59]}  a6 {[%clk 0:02:57]} 6. a4 {[%clk 0:02:57]}  c5 {[%clk 0:02:57]} 7. Bxc4 {[%clk 0:02:57]}  Be7 {[%clk 0:02:55]} 8. O-O {[%clk 0:02:56]}  Nc6 {[%clk 0:02:54]} 9. dxc5 {[%clk 0:02:49]}  Qxd1 {[%clk 0:02:53]} 10. Rxd1 {[%clk 0:02:49]}  Bxc5 {[%clk 0:02:53]} 11. b3 {[%clk 0:02:44]}  Bd7 {[%clk 0:02:52]} 12. Bb2 {[%clk 0:02:30]}  Ke7 {[%clk 0:02:28]} 13. Rac1 {[%clk 0:02:30]}  Rac8 {[%clk 0:02:21]} 14. Ne2 {[%clk 0:02:09]}  Na5 {[%clk 0:02:12]} 15. Ne5 {[%clk 0:02:01]}  Nxc4 {[%clk 0:02:12]} 16. Rxc4 {[%clk 0:01:57]}  Rhd8 {[%clk 0:01:56]} 17. Rxc5 {[%clk 0:01:54]}  Rxc5 {[%clk 0:01:55]} 18. Ba3 {[%clk 0:01:54]}  Rc8 {[%clk 0:01:43]} 19. Nd3 {[%clk 0:01:47]}  b6 {[%clk 0:01:41]} 20. Rc1 {[%clk 0:01:15]}  Ne4 {[%clk 0:01:38]} 21. f3 {[%clk 0:01:11]}  Nd2 {[%clk 0:01:37]} 22. Nxc5 {[%clk 0:00:55]}  bxc5 {[%clk 0:01:37]} 23. Rxc5 {[%clk 0:00:48]}  Rxc5 {[%clk 0:01:35]} 24. Bxc5+ {[%clk 0:00:49]}  Ke8 {[%clk 0:01:34]} 25. Nc1 {[%clk 0:00:50]}  e5 {[%clk 0:01:18]} 26. Kf2 {[%clk 0:00:42]}  Be6 {[%clk 0:01:14]} 27. b4 {[%clk 0:00:28]}  Bd7 {[%clk 0:01:14]} 28. b5 {[%clk 0:00:22]}  axb5 {[%clk 0:01:14]} 29. a5 {[%clk 0:00:18]}  Bc8 {[%clk 0:01:10]} 30. Ke2 {[%clk 0:00:16]}  Nc4 {[%clk 0:01:09]} 31. Bb4 {[%clk 0:00:15]}  Kd7 {[%clk 0:01:05]} 32. Na2 {[%clk 0:00:15]}  Kc6 {[%clk 0:01:03]} 33. Nc3 {[%clk 0:00:16]}  Be6 {[%clk 0:00:56]} 34. Ne4 {[%clk 0:00:11]}  f6 {[%clk 0:00:50]} 35. Nc5 {[%clk 0:00:11]}  Bc8 {[%clk 0:00:50]} 36. a6 {[%clk 0:00:06]}  Kb6 {[%clk 0:00:48]} 37. Nb3 {[%clk 0:00:02]}  Bxa6 {[%clk 0:00:47]} 38. Bf8 {[%clk 0:00:02]}  g6 {[%clk 0:00:46]} 39. Bg7 {[%clk 0:00:01]}  f5 {[%clk 0:00:46]} 40. g4 {[%clk 0:00:02]}  fxg4 {[%clk 0:00:44]} 41. fxg4 {[%clk 0:00:03]}  b4 {[%clk 0:00:43]} 42. Kf3 {[%clk 0:00:03]}  Bb7+ {[%clk 0:00:42]} 43. Ke2 {[%clk 0:00:03]}  Kb5 {[%clk 0:00:42]} 44. Bf8 {[%clk 0:00:04]}  Bd5 {[%clk 0:00:40]} 45. Nc5 {[%clk 0:00:02]}  Nb6 {[%clk 0:00:38]} 46. e4 {[%clk 0:00:02]}  Bc4+ {[%clk 0:00:37]} 47. Ke3 {[%clk 0:00:02]}  b3 {[%clk 0:00:37]} 48. Nd3 {[%clk 0:00:01]}  Bxd3 {[%clk 0:00:35]} 49. Kxd3 {[%clk 0:00:02]}  b2 {[%clk 0:00:34]} 50. Kc2 {[%clk 0:00:02]}  Nc4 {[%clk 0:00:33]} 0-1


[Site "https://www.chess.com"]

[Event "Titled Tuesday Blitz April 26 Late 2022"]
[White "Deac, Bogdan-Daniel"]
[Black "Muradli, Mahammad"]
[WhiteFideId "1226380"]
[BlackFideId "13409301"]
[WhiteElo "2648"]
[BlackElo "2611"]
[Result "1/2-1/2"]
[Round "11"]
[TimeControl "180+1"]
[Date "2022.04.26"]
[WhiteClock "0:00:04"]
[BlackClock "0:00:04"]

1. e4 {[%clk 0:02:38]}  c5 {[%clk 0:02:58]} 2. Nf3 {[%clk 0:02:36]}  d6 {[%clk 0:02:59]} 3. d4 {[%clk 0:02:37]}  cxd4 {[%clk 0:03:00]} 4. Nxd4 {[%clk 0:02:38]}  Nf6 {[%clk 0:03:00]} 5. Nc3 {[%clk 0:02:38]}  a6 {[%clk 0:03:01]} 6. f3 {[%clk 0:02:38]}  e5 {[%clk 0:03:00]} 7. Nb3 {[%clk 0:02:38]}  Be6 {[%clk 0:03:00]} 8. Be3 {[%clk 0:02:39]}  Be7 {[%clk 0:03:00]} 9. Qd2 {[%clk 0:02:39]}  O-O {[%clk 0:02:59]} 10. O-O-O {[%clk 0:02:40]}  a5 {[%clk 0:03:00]} 11. Bb5 {[%clk 0:02:36]}  Na6 {[%clk 0:02:59]} 12. g4 {[%clk 0:02:35]}  Nc7 {[%clk 0:02:58]} 13. Bb6 {[%clk 0:02:32]}  Qb8 {[%clk 0:02:57]} 14. Bxc7 {[%clk 0:01:56]}  Qxc7 {[%clk 0:02:46]} 15. Kb1 {[%clk 0:01:56]}  Rfd8 {[%clk 0:02:36]} 16. Qf2 {[%clk 0:01:51]}  Nd7 {[%clk 0:02:13]} 17. a4 {[%clk 0:01:45]}  Nb6 {[%clk 0:02:11]} 18. f4 {[%clk 0:01:37]}  exf4 {[%clk 0:02:09]} 19. Qxf4 {[%clk 0:01:29]}  Bf6 {[%clk 0:02:09]} 20. Nd4 {[%clk 0:01:29]}  Be5 {[%clk 0:02:09]} 21. Qf3 {[%clk 0:01:28]}  Nc4 {[%clk 0:02:06]} 22. Rhf1 {[%clk 0:01:19]}  Rac8 {[%clk 0:01:56]} 23. g5 {[%clk 0:01:04]}  Qc5 {[%clk 0:01:17]} 24. Nxe6 {[%clk 0:00:21]}  fxe6 {[%clk 0:01:18]} 25. Bxc4 {[%clk 0:00:21]}  Qxc4 {[%clk 0:01:17]} 26. Qf7+ {[%clk 0:00:21]}  Kh8 {[%clk 0:01:17]} 27. Rd3 {[%clk 0:00:21]}  Qb4 {[%clk 0:00:18]} 28. Rff3 {[%clk 0:00:21]}  b5 {[%clk 0:00:14]} 29. Rh3 {[%clk 0:00:19]}  h6 {[%clk 0:00:10]} 30. gxh6 {[%clk 0:00:15]}  g5 {[%clk 0:00:10]} 31. Rhg3 {[%clk 0:00:11]}  bxa4 {[%clk 0:00:09]} 32. Rxg5 {[%clk 0:00:11]}  a3 {[%clk 0:00:10]} 33. b3 {[%clk 0:00:09]}  Rxc3 {[%clk 0:00:03]} 34. Rxe5 {[%clk 0:00:07]}  a2+ {[%clk 0:00:04]} 35. Ka1 {[%clk 0:00:06]}  Rg8 {[%clk 0:00:01]} 36. Qf6+ {[%clk 0:00:05]}  Kh7 {[%clk 0:00:02]} 37. Qf7+ {[%clk 0:00:05]}  Kh8 {[%clk 0:00:02]} 38. Rd1 {[%clk 0:00:04]}  Rxc2 {[%clk 0:00:02]} 39. Qf6+ {[%clk 0:00:04]}  Kh7 {[%clk 0:00:03]} 40. Qf7+ {[%clk 0:00:03]}  Kh8 {[%clk 0:00:03]} 41. Qf6+ {[%clk 0:00:03]}  Kh7 {[%clk 0:00:04]} 42. Qf7+ {[%clk 0:00:04]}  Kh8 {[%clk 0:00:04]} 1/2-1/2


[Site "https://www.chess.com"]

[Event "Titled Tuesday Blitz April 26 Late 2022"]
[White "Dubov, Daniil"]
[Black "Moiseenko, Alexander"]
[WhiteFideId "24126055"]
[BlackFideId "14102560"]
[WhiteElo "2791"]
[BlackElo "2577"]
[Result "0-1"]
[Round "11"]
[TimeControl "180+1"]
[Date "2022.04.26"]
[WhiteClock "0:01:49"]
[BlackClock "0:00:17"]

1. e4 {[%clk 0:02:39]}  c5 {[%clk 0:02:56]} 2. Nc3 {[%clk 0:02:40]}  Nc6 {[%clk 0:02:55]} 3. Nf3 {[%clk 0:02:41]}  e5 {[%clk 0:02:54]} 4. Bb5 {[%clk 0:02:42]}  d6 {[%clk 0:02:53]} 5. O-O {[%clk 0:02:42]}  Be7 {[%clk 0:02:53]} 6. d3 {[%clk 0:02:41]}  Nf6 {[%clk 0:02:53]} 7. Bxc6+ {[%clk 0:02:41]}  bxc6 {[%clk 0:02:52]} 8. Ne2 {[%clk 0:02:41]}  O-O {[%clk 0:02:51]} 9. Ng3 {[%clk 0:02:42]}  Ne8 {[%clk 0:02:43]} 10. c3 {[%clk 0:02:41]}  Bd7 {[%clk 0:02:15]} 11. Re1 {[%clk 0:02:41]}  Rb8 {[%clk 0:02:11]} 12. d4 {[%clk 0:02:41]}  cxd4 {[%clk 0:02:11]} 13. cxd4 {[%clk 0:02:42]}  exd4 {[%clk 0:02:11]} 14. Nxd4 {[%clk 0:02:43]}  g6 {[%clk 0:02:11]} 15. b3 {[%clk 0:02:43]}  Bf6 {[%clk 0:02:06]} 16. Bh6 {[%clk 0:02:43]}  Ng7 {[%clk 0:01:59]} 17. Rc1 {[%clk 0:02:44]}  c5 {[%clk 0:01:58]} 18. Nf3 {[%clk 0:02:44]}  Bg4 {[%clk 0:01:47]} 19. h3 {[%clk 0:02:42]}  Bxf3 {[%clk 0:01:48]} 20. Qxf3 {[%clk 0:02:43]}  Re8 {[%clk 0:01:48]} 21. Rcd1 {[%clk 0:02:43]}  Bd4 {[%clk 0:01:42]} 22. Ne2 {[%clk 0:02:43]}  Be5 {[%clk 0:01:35]} 23. Bf4 {[%clk 0:02:42]}  Qf6 {[%clk 0:01:31]} 24. Qg3 {[%clk 0:02:41]}  Nh5 {[%clk 0:01:20]} 25. Bxe5 {[%clk 0:02:41]}  Rxe5 {[%clk 0:01:16]} 26. Qd3 {[%clk 0:02:41]}  Rbe8 {[%clk 0:01:13]} 27. Nc3 {[%clk 0:02:39]}  Nf4 {[%clk 0:01:10]} 28. Qf3 {[%clk 0:02:36]}  Rg5 {[%clk 0:01:06]} 29. Kh1 {[%clk 0:02:34]}  Qe5 {[%clk 0:00:49]} 30. g3 {[%clk 0:02:22]}  Nxh3 {[%clk 0:00:48]} 31. Nd5 {[%clk 0:02:22]}  Kg7 {[%clk 0:00:39]} 32. Kg2 {[%clk 0:02:21]}  Rh5 {[%clk 0:00:38]} 33. Rh1 {[%clk 0:02:20]}  Ng5 {[%clk 0:00:38]} 34. Rxh5 {[%clk 0:02:19]}  gxh5 {[%clk 0:00:31]} 35. Qxh5 {[%clk 0:02:02]}  Qxe4+ {[%clk 0:00:31]} 36. Kh2 {[%clk 0:02:02]}  Re5 {[%clk 0:00:25]} 37. Nf4 {[%clk 0:01:49]}  Nf3+ {[%clk 0:00:24]} 38. Kh3 {[%clk 0:01:50]}  Rxh5+ {[%clk 0:00:23]} 39. Nxh5+ {[%clk 0:01:51]}  Kf8 {[%clk 0:00:20]} 40. Rxd6 {[%clk 0:01:49]}  Ng5+ {[%clk 0:00:19]} 41. Kh2 {[%clk 0:01:49]}  Qf3 {[%clk 0:00:17]} 0-1


[Site "https://www.chess.com"]

[Event "Titled Tuesday Blitz April 26 Late 2022"]
[White "Fishbein, Alexander"]
[Black "Makarian, Rudik"]
[WhiteFideId "2000377"]
[BlackFideId "44105681"]
[WhiteElo "2442"]
[BlackElo "2388"]
[Result "0-1"]
[Round "11"]
[TimeControl "180+1"]
[Date "2022.04.26"]
[WhiteClock "0:00:02"]
[BlackClock "0:00:07"]

1. e4 {[%clk 0:03:00]}  e5 {[%clk 0:02:59]} 2. Nf3 {[%clk 0:03:00]}  Nc6 {[%clk 0:03:00]} 3. Bb5 {[%clk 0:03:00]}  a6 {[%clk 0:02:59]} 4. Ba4 {[%clk 0:03:00]}  Bc5 {[%clk 0:02:59]} 5. O-O {[%clk 0:02:57]}  Nge7 {[%clk 0:02:58]} 6. c3 {[%clk 0:02:57]}  Ng6 {[%clk 0:02:56]} 7. d4 {[%clk 0:02:56]}  Ba7 {[%clk 0:02:57]} 8. d5 {[%clk 0:02:55]}  Nce7 {[%clk 0:02:56]} 9. d6 {[%clk 0:02:52]}  cxd6 {[%clk 0:02:57]} 10. Qxd6 {[%clk 0:02:46]}  O-O {[%clk 0:02:56]} 11. Bg5 {[%clk 0:02:37]}  f6 {[%clk 0:02:55]} 12. Bb3+ {[%clk 0:02:35]}  Kh8 {[%clk 0:02:55]} 13. Be3 {[%clk 0:02:30]}  Bxe3 {[%clk 0:02:44]} 14. fxe3 {[%clk 0:02:31]}  b5 {[%clk 0:02:42]} 15. Rd1 {[%clk 0:02:19]}  Ra7 {[%clk 0:02:38]} 16. Na3 {[%clk 0:02:16]}  Qc7 {[%clk 0:02:32]} 17. Nc2 {[%clk 0:02:10]}  Qxd6 {[%clk 0:02:17]} 18. Rxd6 {[%clk 0:02:09]}  Rc7 {[%clk 0:02:17]} 19. Rad1 {[%clk 0:02:05]}  Rd8 {[%clk 0:02:14]} 20. Nb4 {[%clk 0:02:04]}  a5 {[%clk 0:02:11]} 21. Nd5 {[%clk 0:02:01]}  Nxd5 {[%clk 0:02:08]} 22. Bxd5 {[%clk 0:02:01]}  Ne7 {[%clk 0:02:04]} 23. Rb6 {[%clk 0:01:40]}  Rc5 {[%clk 0:01:59]} 24. b4 {[%clk 0:01:34]}  Rxc3 {[%clk 0:01:53]} 25. bxa5 {[%clk 0:01:33]}  Ra3 {[%clk 0:01:53]} 26. Bb3 {[%clk 0:01:20]}  Rxa5 {[%clk 0:01:44]} 27. Nh4 {[%clk 0:01:15]}  g5 {[%clk 0:01:32]} 28. Nf3 {[%clk 0:01:13]}  Kg7 {[%clk 0:01:28]} 29. Rdd6 {[%clk 0:01:13]}  Rf8 {[%clk 0:01:28]} 30. Nd2 {[%clk 0:01:04]}  Nc6 {[%clk 0:01:11]} 31. Nf1 {[%clk 0:01:04]}  Ne7 {[%clk 0:01:00]} 32. Ng3 {[%clk 0:01:03]}  Kg6 {[%clk 0:00:59]} 33. h3 {[%clk 0:00:55]}  h5 {[%clk 0:00:57]} 34. Bd1 {[%clk 0:00:49]}  h4 {[%clk 0:00:52]} 35. Nh5 {[%clk 0:00:44]}  Nc6 {[%clk 0:00:50]} 36. Bg4 {[%clk 0:00:40]}  Rxa2 {[%clk 0:00:45]} 37. Rxb5 {[%clk 0:00:38]}  Ra3 {[%clk 0:00:41]} 38. Rb2 {[%clk 0:00:37]}  Ne7 {[%clk 0:00:32]} 39. Rf2 {[%clk 0:00:36]}  Ng8 {[%clk 0:00:32]} 40. Kh2 {[%clk 0:00:30]}  Rxe3 {[%clk 0:00:32]} 41. g3 {[%clk 0:00:30]}  hxg3+ {[%clk 0:00:27]} 42. Nxg3 {[%clk 0:00:31]}  Nh6 {[%clk 0:00:26]} 43. Bf5+ {[%clk 0:00:25]}  Nxf5 {[%clk 0:00:24]} 44. exf5+ {[%clk 0:00:20]}  Kf7 {[%clk 0:00:22]} 45. Rb2 {[%clk 0:00:17]}  Ke7 {[%clk 0:00:17]} 46. Rbb6 {[%clk 0:00:17]}  Rf3 {[%clk 0:00:13]} 47. Kg2 {[%clk 0:00:16]}  Rf4 {[%clk 0:00:13]} 48. Rd2 {[%clk 0:00:11]}  g4 {[%clk 0:00:09]} 49. h4 {[%clk 0:00:08]}  Rh8 {[%clk 0:00:09]} 50. Rf2 {[%clk 0:00:05]}  Rxh4 {[%clk 0:00:08]} 51. Rxf4 {[%clk 0:00:05]}  exf4 {[%clk 0:00:09]} 52. Ne4 {[%clk 0:00:04]}  g3 {[%clk 0:00:08]} 53. Nd6 {[%clk 0:00:02]}  Rh2+ {[%clk 0:00:08]} 54. Kg1 {[%clk 0:00:02]}  Rc2 {[%clk 0:00:07]} 0-1


[Site "https://www.chess.com"]

[Event "Titled Tuesday Blitz April 26 Late 2022"]
[White "Harish, Neeraj"]
[Black "Dahlgren, James Allen"]
[WhiteFideId "30958130"]
[BlackFideId "22256873"]
[WhiteElo "1574"]
[BlackElo "2084"]
[Result "1/2-1/2"]
[Round "11"]
[TimeControl "180+1"]
[Date "2022.04.26"]
[WhiteClock "0:00:26"]
[BlackClock "0:00:13"]

1. e4 {[%clk 0:03:00]}  e6 {[%clk 0:03:00]} 2. d4 {[%clk 0:02:57]}  c5 {[%clk 0:03:01]} 3. Nf3 {[%clk 0:02:56]}  cxd4 {[%clk 0:03:01]} 4. Nxd4 {[%clk 0:02:57]}  Nf6 {[%clk 0:03:01]} 5. Nc3 {[%clk 0:02:57]}  Nc6 {[%clk 0:03:01]} 6. Ndb5 {[%clk 0:02:57]}  d6 {[%clk 0:03:00]} 7. Bg5 {[%clk 0:02:56]}  a6 {[%clk 0:02:56]} 8. Na3 {[%clk 0:02:55]}  b5 {[%clk 0:02:56]} 9. Naxb5 {[%clk 0:02:47]}  axb5 {[%clk 0:02:56]} 10. Bxb5 {[%clk 0:02:48]}  Bd7 {[%clk 0:02:56]} 11. O-O {[%clk 0:02:46]}  Be7 {[%clk 0:02:55]} 12. a4 {[%clk 0:02:39]}  O-O {[%clk 0:02:55]} 13. f4 {[%clk 0:02:23]}  Qc7 {[%clk 0:02:42]} 14. Qe1 {[%clk 0:02:12]}  h6 {[%clk 0:02:32]} 15. Bxf6 {[%clk 0:02:09]}  Bxf6 {[%clk 0:02:33]} 16. Rd1 {[%clk 0:02:06]}  Nd4 {[%clk 0:02:20]} 17. Bxd7 {[%clk 0:02:03]}  Qxd7 {[%clk 0:02:14]} 18. e5 {[%clk 0:02:02]}  dxe5 {[%clk 0:01:59]} 19. fxe5 {[%clk 0:01:59]}  Be7 {[%clk 0:01:50]} 20. Qf2 {[%clk 0:01:42]}  Bc5 {[%clk 0:01:47]} 21. Ne4 {[%clk 0:01:42]}  Nf3+ {[%clk 0:01:36]} 22. Kh1 {[%clk 0:01:34]}  Qxd1 {[%clk 0:01:30]} 23. Nxc5 {[%clk 0:01:29]}  Qd4 {[%clk 0:01:20]} 24. gxf3 {[%clk 0:01:21]}  Qxf2 {[%clk 0:01:19]} 25. Rxf2 {[%clk 0:01:22]}  Rab8 {[%clk 0:01:09]} 26. c3 {[%clk 0:01:20]}  Rfc8 {[%clk 0:01:04]} 27. b4 {[%clk 0:01:18]}  f6 {[%clk 0:01:04]} 28. exf6 {[%clk 0:01:14]}  gxf6 {[%clk 0:01:05]} 29. a5 {[%clk 0:01:12]}  Kf7 {[%clk 0:01:04]} 30. a6 {[%clk 0:01:12]}  e5 {[%clk 0:01:03]} 31. Rd2 {[%clk 0:01:09]}  Rc7 {[%clk 0:00:52]} 32. Rd7+ {[%clk 0:01:06]}  Rxd7 {[%clk 0:00:52]} 33. Nxd7 {[%clk 0:01:07]}  Rc8 {[%clk 0:00:43]} 34. a7 {[%clk 0:00:57]}  Ra8 {[%clk 0:00:41]} 35. b5 {[%clk 0:00:56]}  Rxa7 {[%clk 0:00:41]} 36. Nc5 {[%clk 0:00:56]}  Ke7 {[%clk 0:00:39]} 37. c4 {[%clk 0:00:55]}  Kd6 {[%clk 0:00:38]} 38. Ne4+ {[%clk 0:00:55]}  Ke6 {[%clk 0:00:32]} 39. b6 {[%clk 0:00:54]}  Ra1+ {[%clk 0:00:32]} 40. Kg2 {[%clk 0:00:54]}  Rb1 {[%clk 0:00:30]} 41. c5 {[%clk 0:00:53]}  f5 {[%clk 0:00:30]} 42. Nd6 {[%clk 0:00:53]}  Kd7 {[%clk 0:00:30]} 43. Nxf5 {[%clk 0:00:47]}  Kc6 {[%clk 0:00:30]} 44. Nxh6 {[%clk 0:00:47]}  Kxc5 {[%clk 0:00:31]} 45. Nf7 {[%clk 0:00:46]}  Kd5 {[%clk 0:00:30]} 46. Kg3 {[%clk 0:00:45]}  Rxb6 {[%clk 0:00:31]} 47. Kg4 {[%clk 0:00:46]}  Ke6 {[%clk 0:00:29]} 48. Ng5+ {[%clk 0:00:45]}  Kf6 {[%clk 0:00:29]} 49. h4 {[%clk 0:00:45]}  Kg7 {[%clk 0:00:28]} 50. h5 {[%clk 0:00:43]}  Rb4+ {[%clk 0:00:28]} 51. Ne4 {[%clk 0:00:39]}  Kh6 {[%clk 0:00:27]} 52. Kf5 {[%clk 0:00:39]}  Rb5 {[%clk 0:00:25]} 53. Nf6 {[%clk 0:00:33]}  Ra5 {[%clk 0:00:23]} 54. Ng4+ {[%clk 0:00:31]}  Kxh5 {[%clk 0:00:23]} 55. Nxe5 {[%clk 0:00:30]}  Kh6 {[%clk 0:00:19]} 56. f4 {[%clk 0:00:31]}  Kg7 {[%clk 0:00:19]} 57. Ke6 {[%clk 0:00:31]}  Ra1 {[%clk 0:00:18]} 58. f5 {[%clk 0:00:31]}  Rf1 {[%clk 0:00:18]} 59. Ng4 {[%clk 0:00:28]}  Rf4 {[%clk 0:00:15]} 60. Ne5 {[%clk 0:00:27]}  Kf8 {[%clk 0:00:13]} 61. f6 {[%clk 0:00:25]}  Rxf6+ {[%clk 0:00:13]} 62. Kxf6 {[%clk 0:00:26]} 1/2-1/2


[Site "https://www.chess.com"]

[Event "Titled Tuesday Blitz April 26 Late 2022"]
[White "Ivanisevic, Ivan"]
[Black "Barria Zuniga, Daniel"]
[WhiteFideId "912417"]
[BlackFideId "3400816"]
[WhiteElo "2495"]
[BlackElo "2414"]
[Result "1-0"]
[Round "11"]
[TimeControl "180+1"]
[Date "2022.04.26"]
[WhiteClock "0:00:53"]
[BlackClock "0:00:13"]

1. e4 {[%clk 0:03:00]}  e6 {[%clk 0:02:57]} 2. d4 {[%clk 0:02:58]}  d5 {[%clk 0:02:57]} 3. e5 {[%clk 0:02:59]}  c5 {[%clk 0:02:57]} 4. c3 {[%clk 0:02:59]}  Nc6 {[%clk 0:02:57]} 5. Nf3 {[%clk 0:03:00]}  Qb6 {[%clk 0:02:57]} 6. Bd3 {[%clk 0:02:57]}  cxd4 {[%clk 0:02:52]} 7. O-O {[%clk 0:02:56]}  Bd7 {[%clk 0:02:51]} 8. Re1 {[%clk 0:02:54]}  a6 {[%clk 0:02:34]} 9. h4 {[%clk 0:02:49]}  h6 {[%clk 0:02:32]} 10. Nbd2 {[%clk 0:02:44]}  Rc8 {[%clk 0:02:29]} 11. Nb3 {[%clk 0:02:42]}  dxc3 {[%clk 0:02:25]} 12. bxc3 {[%clk 0:02:42]}  Na5 {[%clk 0:02:13]} 13. Be3 {[%clk 0:02:37]}  Qd8 {[%clk 0:02:13]} 14. Nxa5 {[%clk 0:02:17]}  Qxa5 {[%clk 0:02:14]} 15. Rb1 {[%clk 0:02:17]}  b5 {[%clk 0:02:09]} 16. a4 {[%clk 0:02:16]}  Ne7 {[%clk 0:01:54]} 17. axb5 {[%clk 0:02:15]}  Bxb5 {[%clk 0:01:53]} 18. Bxb5+ {[%clk 0:02:13]}  axb5 {[%clk 0:01:54]} 19. Qd3 {[%clk 0:02:04]}  Nc6 {[%clk 0:01:07]} 20. Rxb5 {[%clk 0:02:03]}  Qa4 {[%clk 0:01:03]} 21. Rb7 {[%clk 0:01:42]}  Be7 {[%clk 0:01:02]} 22. Nd4 {[%clk 0:01:07]}  Nxe5 {[%clk 0:00:58]} 23. Qe2 {[%clk 0:01:06]}  Bf6 {[%clk 0:00:41]} 24. Bf4 {[%clk 0:01:01]}  Nc4 {[%clk 0:00:29]} 25. Nxe6 {[%clk 0:00:59]}  Qc6 {[%clk 0:00:13]} 26. Nd4+ {[%clk 0:00:53]} 1-0


[Site "https://www.chess.com"]

[Event "Titled Tuesday Blitz April 26 Late 2022"]
[White "Kohler, Aran"]
[Black "Ricaurte Lopez, Juan Carlos"]
[WhiteFideId "1002856"]
[BlackFideId "3600327"]
[WhiteElo "2262"]
[BlackElo "2209"]
[Result "0-1"]
[Round "11"]
[TimeControl "180+1"]
[Date "2022.04.26"]
[WhiteClock "0:00:13"]
[BlackClock "0:01:01"]

1. e4 {[%clk 0:02:59]}  e5 {[%clk 0:02:59]} 2. Nf3 {[%clk 0:02:58]}  d5 {[%clk 0:02:54]} 3. Nxe5 {[%clk 0:02:48]}  Bd6 {[%clk 0:02:52]} 4. d4 {[%clk 0:02:46]}  dxe4 {[%clk 0:02:51]} 5. Bc4 {[%clk 0:02:41]}  Bxe5 {[%clk 0:02:48]} 6. dxe5 {[%clk 0:02:41]}  Qxd1+ {[%clk 0:02:46]} 7. Kxd1 {[%clk 0:02:42]}  Nc6 {[%clk 0:02:45]} 8. Bf4 {[%clk 0:02:41]}  Bg4+ {[%clk 0:02:45]} 9. Ke1 {[%clk 0:02:40]}  O-O-O {[%clk 0:02:41]} 10. Nc3 {[%clk 0:02:33]}  Nd4 {[%clk 0:02:30]} 11. Bb3 {[%clk 0:02:25]}  f5 {[%clk 0:02:23]} 12. h3 {[%clk 0:02:22]}  Bh5 {[%clk 0:02:19]} 13. Be3 {[%clk 0:02:17]}  Nxb3 {[%clk 0:02:14]} 14. axb3 {[%clk 0:02:17]}  a6 {[%clk 0:02:14]} 15. g4 {[%clk 0:02:17]}  fxg4 {[%clk 0:02:12]} 16. Nxe4 {[%clk 0:02:14]}  gxh3 {[%clk 0:02:05]} 17. Rxh3 {[%clk 0:02:12]}  Bg6 {[%clk 0:02:05]} 18. Rh4 {[%clk 0:02:03]}  Ne7 {[%clk 0:02:04]} 19. b4 {[%clk 0:01:47]}  Nf5 {[%clk 0:02:02]} 20. Rf4 {[%clk 0:01:46]}  Nxe3 {[%clk 0:01:51]} 21. fxe3 {[%clk 0:01:46]}  Rhe8 {[%clk 0:01:50]} 22. b5 {[%clk 0:01:32]}  axb5 {[%clk 0:01:47]} 23. Nc5 {[%clk 0:01:29]}  c6 {[%clk 0:01:44]} 24. Rd4 {[%clk 0:01:19]}  Rd5 {[%clk 0:01:16]} 25. Ra8+ {[%clk 0:01:14]}  Kc7 {[%clk 0:01:13]} 26. Rxe8 {[%clk 0:01:13]}  Bxe8 {[%clk 0:01:12]} 27. Rxd5 {[%clk 0:01:09]}  cxd5 {[%clk 0:01:12]} 28. Ne6+ {[%clk 0:01:10]}  Kd7 {[%clk 0:01:08]} 29. Nxg7 {[%clk 0:01:10]}  Bg6 {[%clk 0:01:08]} 30. c3 {[%clk 0:01:10]}  Ke7 {[%clk 0:01:06]} 31. e4 {[%clk 0:00:36]}  dxe4 {[%clk 0:01:02]} 32. Kf2 {[%clk 0:00:13]}  Kf7 {[%clk 0:01:01]} 0-1


[Site "https://www.chess.com"]